fUSD/lending_fUSD_20250514
["ID","MTS","AMOUNT","RATE_DAILY","PERIOD"]
[361057754,1747223441990,-461.71,0.00010986,2]
[361057755,1747223442001,-682.99,0.00010986,2]
[361057756,1747223442010,-400.0,0.00010986,2]
[361057757,1747223442019,-400.0,0.00010986,2]
[361057758,1747223442028,-400.0,0.00010986,2]
[361057759,1747223442038,-400.0,0.00010986,2]
[361057760,1747223442047,-400.0,0.00010986,2]
[361057761,1747223442055,-400.0,0.00010986,2]
[361057762,1747223442064,-600.57,0.00010986,2]
[361057763,1747223442071,-400.0,0.00010986,2]
[361057764,1747223442079,-437.17,0.00010986,2]
[361057765,1747223442085,-757.36,0.00010986,2]
[361057766,1747223442095,-400.0,0.00010986,2]
[361057767,1747223442106,-566.68,0.00010986,2]
[361057768,1747223442116,-400.0,0.00010986,2]
[361057769,1747223442126,-1506.77,0.00010986,2]
[361057770,1747223442136,-400.0,0.00010986,2]
[361057771,1747223442146,-400.0,0.00010986,2]
[361057772,1747223442156,-1824.24,0.00010986,2]
[361057773,1747223442166,-647.18698478,0.00010986,2]
[361057774,1747223442177,-400.0,0.00010986,2]
[361057775,1747223442187,-400.0,0.00010986,2]
[361057776,1747223442197,-400.0,0.00010986,2]
[361057777,1747223442208,-400.0,0.00010986,2]
[361057778,1747223442218,-400.0,0.00010986,2]
[361057779,1747223442228,-996.74,0.00010986,2]
[361057780,1747223442238,-400.0,0.00010986,2]
[361057781,1747223442249,-519.46,0.00010986,2]
[361057782,1747223442259,-400.0,0.00010986,2]
[361057783,1747223442270,-866.832,0.00010988,2]
[361057784,1747223442280,-866.832,0.00010988,2]
[361057785,1747223442291,-866.832,0.00010989,2]
[361057786,1747223442303,-866.832,0.00010989,2]
[361057787,1747223442314,-866.832,0.0001099,2]
[361057788,1747223442324,-866.832,0.00010996,2]
[361057789,1747223442335,-866.832,0.00010998,2]
[361057790,1747223442344,-167.392,0.00010999,2]
[361057791,1747223442355,-1726.908,0.00010999,2]
[361057792,1747223442365,-1000.0,0.00010999,2]
[361057793,1747223442376,-866.832,0.00010999,2]
[361057794,1747223442386,-151.0,0.00011,2]
[361057795,1747223442397,-151.0,0.00011,2]
[361057796,1747223442409,-151.0,0.00011,2]
[361057797,1747223442419,-151.0,0.00011,2]
[361057798,1747223442429,-203.416657,0.00011,2]
[361057799,1747223442438,-1000.0,0.00011,2]
[361057800,1747223442449,-1000.0,0.00011,2]
[361057801,1747223442459,-1000.0,0.00011,2]
[361057802,1747223442469,-1000.0,0.00011,2]
[361057803,1747223442479,-500.0,0.00011055,2]
[361057804,1747223442489,-500.0,0.00011055,2]
[361057805,1747223442499,-500.0,0.00011055,2]
[361057806,1747223442509,-500.0,0.00011055,2]
[361057807,1747223442520,-500.0,0.00011055,2]
[361057808,1747223442530,-500.0,0.00011055,2]
[361057809,1747223442540,-500.0,0.00011055,2]
[361057810,1747223442551,-530.33896219,0.00011055,2]
[361057811,1747223442561,-2612.27993637,0.00011099,2]
[361057812,1747223442583,-269.81789356,0.00011099,2]
[361057813,1747223442593,-1924.91244272,0.00011099,2]
[361057814,1747223442603,-2882.09782991,0.00011157,2]
[361057815,1747223442614,-163.72368475,0.00011159,2]
[361057816,1747223442624,-1924.91244268,0.00011159,2]
[361057817,1747223442634,-420.0,0.00011173,2]
[361057818,1747223442644,-420.0,0.00011173,2]
[361057819,1747223442654,-1680.0,0.00011175,2]
[361057820,1747223442665,-2626.26304578,0.00011205,2]
[361057821,1747223443069,-165.86063392,0.00011205,2]
[361057822,1747223443080,-4000.0,0.00011233,2]
[361057823,1747223443091,-193.67623932,0.0001125,2]
[361057824,1747223443101,-1375.43,0.00011255,2]
[361057826,1747223443112,-91404.0353639,0.00011257,2]
[361057828,1747223443123,-7576.2563811,0.00011257,2]
[361057830,1747223443132,-4262.3367122,0.00011257,2]
[361057831,1747223443143,-400.0,0.00011258,2]
[361057832,1747223443153,-400.0,0.00011258,2]
[361057833,1747223443163,-400.0,0.00011258,2]
[361057834,1747223443174,-913.16,0.00011258,2]
[361057835,1747223443184,-400.0,0.00011258,2]
[361057836,1747223443195,-497.5,0.00011258,2]
[361057837,1747223443205,-546.78,0.00011258,2]
[361057838,1747223443215,-400.0,0.00011258,2]
[361057839,1747223443225,-1019.9,0.00011258,2]
[361057841,1747223443235,-824.74,0.00011258,2]
[361057843,1747223443246,-497.69,0.00011258,2]
[361057846,1747223443258,-2035.11,0.00011258,2]
[361057848,1747223443269,-401.72803271,0.00011258,2]
[361057849,1747223443279,-481.7,0.00011258,2]
[361057851,1747223443290,-4129.38,0.00011258,2]
[361057853,1747223443300,-400.0,0.00011258,2]
[361057855,1747223443310,-1301.17,0.00011258,2]
[361057857,1747223443321,-10462.85,0.00011258,2]
[361057859,1747223443332,-1470.49,0.00011258,2]
[361057861,1747223443342,-3399.31,0.00011258,2]
[361057863,1747223443352,-400.0,0.00011258,2]
[361057864,1747223443363,-400.0,0.00011258,2]
[361057865,1747223443373,-400.0,0.00011258,2]
[361057866,1747223443383,-621.38,0.00011258,2]
[361057867,1747223443394,-1620.8,0.00011258,2]
[361057868,1747223443404,-1064.77,0.00011258,2]
[361057869,1747223443415,-151.6655458,0.00011258,2]
[361057870,1747223443425,-546.11,0.00011258,2]
[361057871,1747223443435,-400.0,0.00011258,2]
[361057872,1747223443445,-400.0,0.00011258,2]
[361057873,1747223443455,-1734.6,0.00011258,2]
[361057874,1747223443465,-400.0,0.00011258,2]
[361057875,1747223443475,-400.0,0.00011258,2]
[361057876,1747223443485,-400.0,0.00011258,2]
[361057877,1747223443494,-2512.43,0.00011258,2]
[361057878,1747223443507,-976.99,0.00011258,2]
[361057879,1747223443516,-439.39,0.00011258,2]
[361057880,1747223443526,-197.41,0.00011258,2]
[361057881,1747223443537,-542.75,0.00011258,2]
[361057882,1747223443547,-4272.138076,0.00011259,2]
[361057883,1747223443556,-259.652987,0.00011259,2]
[361057884,1747223443566,-400.0,0.00011259,2]
[361057885,1747223443576,-904.01,0.00011259,2]
[361057886,1747223443586,-400.0,0.00011259,2]
[361057887,1747223443595,-400.0,0.00011259,2]
[361057888,1747223443605,-400.0,0.00011259,2]
[361057889,1747223443616,-779.41,0.00011259,2]
[361057890,1747223443626,-1662.69,0.00011259,2]
[361057891,1747223443636,-493.75,0.00011259,2]
[361057892,1747223443647,-695.69,0.00011259,2]
[361057893,1747223443657,-926.53,0.00011259,2]
[361057894,1747223443667,-520.51,0.00011259,2]
[361057895,1747223443677,-858.42,0.00011259,2]
[361057896,1747223443685,-400.0,0.00011259,2]
[361057897,1747223443695,-415.89,0.00011259,2]
[361057899,1747223443704,-400.0,0.00011259,2]
[361057901,1747223443714,-400.0,0.00011259,2]
[361057902,1747223443724,-400.0,0.00011259,2]
[361057903,1747223443734,-234.62563535,0.00011259,2]
[361057904,1747223443743,-487.15,0.00011259,2]
[361057905,1747223443754,-723.51,0.00011259,2]
[361057906,1747223443764,-400.0,0.00011259,2]
[361057908,1747223443774,-400.0,0.00011259,2]
[361057910,1747223443784,-400.0,0.00011259,2]
[361057911,1747223443793,-400.0,0.00011259,2]
[361057912,1747223443803,-400.0,0.00011259,2]
[361057913,1747223443813,-400.0,0.00011259,2]
[361057914,1747223443823,-1878.51,0.00011259,2]
[361057915,1747223443837,-400.0,0.00011259,2]
[361057916,1747223444049,-1012.04,0.00011259,2]
[361057917,1747223444075,-438.42,0.00011259,2]
[361057918,1747223444085,-400.0,0.00011259,2]
[361057919,1747223444094,-497.66,0.00011259,2]
[361057920,1747223444105,-567.46,0.00011259,2]
[361057921,1747223444114,-400.0,0.00011259,2]
[361057922,1747223444124,-400.0,0.00011259,2]
[361057923,1747223444134,-400.0,0.00011259,2]
[361057924,1747223444144,-400.0,0.00011259,2]
[361057925,1747223444154,-577.79,0.00011259,2]
[361057926,1747223444163,-660.7,0.00011259,2]
[361057927,1747223444175,-866.82,0.00011259,2]
[361057928,1747223444184,-400.0,0.00011259,2]
[361057929,1747223444194,-490.68,0.00011259,2]
[361057930,1747223444203,-419.19,0.00011259,2]
[361057931,1747223444212,-400.0,0.00011259,2]
[361057932,1747223444222,-400.0,0.00011259,2]
[361057933,1747223444231,-400.0,0.00011259,2]
[361057934,1747223444241,-400.0,0.00011259,2]
[361057935,1747223444251,-400.0,0.00011259,2]
[361057936,1747223444260,-400.0,0.00011259,2]
[361057937,1747223444270,-400.0,0.00011259,2]
[361057938,1747223444280,-1220.35,0.00011259,2]
[361057939,1747223444289,-534.07,0.00011259,2]
[361057940,1747223444298,-624.52,0.00011259,2]
[361057941,1747223444308,-400.0,0.00011259,2]
[361057942,1747223444318,-440.12,0.00011259,2]
[361057943,1747223444327,-172.09037928,0.00011259,2]
[361057944,1747223444338,-400.0,0.00011259,2]
[361057945,1747223444347,-672.13,0.00011259,2]
[361057946,1747223444357,-400.0,0.00011259,2]
[361057947,1747223444366,-1143.1,0.00011259,2]
[361057948,1747223444375,-400.0,0.00011259,2]
[361057949,1747223444385,-400.0,0.00011259,2]
[361057950,1747223444394,-400.0,0.00011259,2]
[361057951,1747223444403,-400.0,0.00011259,2]
[361057952,1747223444412,-400.0,0.00011259,2]
[361057953,1747223444423,-1008.58,0.00011259,2]
[361057954,1747223444432,-400.0,0.00011259,2]
[361057955,1747223444441,-826.91,0.00011259,2]
[361057956,1747223444450,-412.31,0.00011259,2]
[361057957,1747223444460,-424.95,0.00011259,2]
[361057958,1747223444469,-400.0,0.00011259,2]
[361057959,1747223444479,-668.19,0.00011259,2]
[361057960,1747223444491,-591.7,0.00011259,2]
[361057961,1747223444501,-400.0,0.00011259,2]
[361057962,1747223444510,-400.0,0.00011259,2]
[361057963,1747223444520,-400.0,0.00011259,2]
[361057964,1747223444529,-1255.52,0.00011259,2]
[361057965,1747223444538,-787.41,0.00011259,2]
[361057966,1747223444548,-400.0,0.00011259,2]
[361057967,1747223444557,-729.42,0.00011259,2]
[361057968,1747223444567,-293.69,0.00011259,2]
[361057969,1747223444577,-401.32,0.00011259,2]
[361057970,1747223444586,-446.45,0.00011259,2]
[361057971,1747223444596,-2562.68,0.00011259,2]
[361057972,1747223444605,-599.42,0.00011259,2]
[361057973,1747223444614,-671.84,0.00011259,2]
[361057974,1747223444624,-916.39,0.00011259,2]
[361057975,1747223444634,-400.0,0.00011259,2]
[361057976,1747223444643,-869.27,0.00011259,2]
[361057977,1747223444651,-430.42,0.00011259,2]
[361057978,1747223444659,-1494.74,0.00011259,2]
[361057979,1747223444668,-3442.22,0.00011259,2]
[361057980,1747223444676,-497.91,0.00011259,2]
[361057981,1747223444685,-1099.01,0.00011259,2]
[361057982,1747223444694,-400.0,0.00011259,2]
[361057983,1747223444703,-400.0,0.00011259,2]
[361057984,1747223444712,-400.0,0.00011259,2]
[361057985,1747223444720,-2482.19,0.00011259,2]
[361057986,1747223444728,-400.0,0.00011259,2]
[361057987,1747223444737,-2349.13,0.00011259,2]
[361057988,1747223444746,-400.0,0.00011259,2]
[361057989,1747223444755,-400.0,0.00011259,2]
[361057990,1747223444763,-400.0,0.00011259,2]
[361057991,1747223444771,-400.0,0.00011259,2]
[361057992,1747223444780,-400.0,0.00011259,2]
[361057993,1747223444789,-1904.04,0.00011259,2]
[361057994,1747223444798,-400.0,0.00011259,2]
[361057995,1747223444806,-1033.36,0.00011259,2]
[361057996,1747223444815,-400.0,0.00011259,2]
[361057997,1747223444825,-2399.66,0.00011259,2]
[361057998,1747223444838,-1267.76,0.00011259,2]
[361057999,1747223444846,-1153.04,0.00011259,2]
[361058000,1747223444855,-474.83,0.00011259,2]
[361058001,1747223444861,-428.65,0.00011259,2]
[361058002,1747223444870,-400.0,0.00011259,2]
[361058003,1747223444878,-400.0,0.00011259,2]
[361058004,1747223444884,-1560.97,0.00011259,2]
[361058005,1747223444891,-1624.24,0.00011259,2]
[361058006,1747223444897,-190.20575685,0.00011259,2]
[361058007,1747223444904,-410.41,0.00011259,2]
[361058008,1747223444913,-13143.02,0.00011259,2]
[361058009,1747223444923,-400.0,0.00011259,2]
[361058010,1747223444932,-3597.07,0.00011259,2]
[361058011,1747223444941,-2016.14,0.00011259,2]
[361058012,1747223444951,-428.53,0.00011259,2]
[361058013,1747223444961,-400.0,0.00011259,2]
[361058014,1747223444970,-1532.4,0.00011259,2]
[361058015,1747223444979,-3055.85,0.00011259,2]
[361058016,1747223444988,-400.0,0.00011259,2]
[361058017,1747223444997,-487.01,0.00011259,2]
[361058018,1747223445008,-763.23,0.00011259,2]
[361058019,1747223445017,-400.0,0.00011259,2]
[361058020,1747223445026,-1434.8,0.00011259,2]
[361058021,1747223445036,-400.0,0.00011259,2]
[361058022,1747223445045,-400.0,0.00011259,2]
[361058023,1747223445055,-400.0,0.00011259,2]
[361058024,1747223445063,-1180.25,0.00011259,2]
[361058025,1747223445072,-10293.49,0.00011259,2]
[361058026,1747223445082,-668.96,0.00011259,2]
[361058027,1747223445091,-414.32,0.00011259,2]
[361058028,1747223445100,-400.0,0.00011259,2]
[361058029,1747223445109,-1663.15,0.00011259,2]
[361058030,1747223445118,-939.36,0.00011259,2]
[361058031,1747223445127,-400.0,0.00011259,2]
[361058032,1747223445136,-400.0,0.00011259,2]
[361058033,1747223445144,-400.0,0.00011259,2]
[361058034,1747223445153,-451.34,0.00011259,2]
[361058035,1747223445162,-6446.37,0.00011259,2]
[361058036,1747223445171,-15552.5,0.00011259,2]
[361058037,1747223445181,-400.0,0.00011259,2]
[361058038,1747223445190,-1980.11,0.00011259,2]
[361058039,1747223445200,-400.0,0.00011259,2]
[361058040,1747223445209,-886.07,0.00011259,2]
[361058041,1747223445219,-3904.68,0.00011259,2]
[361058042,1747223445230,-2420.54,0.00011259,2]
[361058043,1747223445240,-400.0,0.00011259,2]
[361058044,1747223445251,-1061.01,0.00011259,2]
[361058045,1747223445262,-400.0,0.00011259,2]
[361058046,1747223445271,-400.0,0.00011259,2]
[361058047,1747223445282,-1548.57,0.00011259,2]
[361058048,1747223445292,-400.0,0.00011259,2]
[361058049,1747223445300,-1542.88,0.00011259,2]
[361058050,1747223445310,-4792.09,0.00011259,2]
[361058051,1747223445320,-490.04,0.00011259,2]
[361058052,1747223445331,-2513.44,0.00011259,2]
[361058053,1747223445341,-400.0,0.00011259,2]
[361058054,1747223445352,-400.0,0.00011259,2]
[361058055,1747223445361,-400.0,0.00011259,2]
[361058056,1747223445371,-7451.0,0.00011259,2]
[361058057,1747223445380,-1071.07,0.00011259,2]
[361058058,1747223445390,-821.23,0.00011259,2]
[361058059,1747223445399,-400.0,0.00011259,2]
[361058060,1747223445408,-400.0,0.00011259,2]
[361058061,1747223445418,-400.0,0.00011259,2]
[361058062,1747223445427,-432.02,0.00011259,2]
[361058063,1747223445436,-853.4,0.00011259,2]
[361058064,1747223445446,-565.26,0.00011259,2]
[361058065,1747223445456,-2125.51,0.00011259,2]
[361058066,1747223445466,-903.4,0.00011259,2]
[361058067,1747223445476,-400.0,0.00011259,2]
[361058068,1747223445485,-1375.43,0.00011259,2]
[361058069,1747223445495,-400.0,0.00011259,2]
[361058070,1747223445506,-739.03,0.00011259,2]
[361058071,1747223445516,-1166.52,0.00011259,2]
[361058072,1747223445525,-400.0,0.00011259,2]
[361058073,1747223445535,-1053.78,0.00011259,2]
[361058074,1747223445544,-1258.39,0.00011259,2]
[361058075,1747223445555,-1159.02,0.00011259,2]
[361058076,1747223445564,-400.0,0.00011259,2]
[361058077,1747223445573,-400.0,0.00011259,2]
[361058078,1747223445583,-6482.19,0.00011259,2]
[361058079,1747223445592,-1741.23,0.00011259,2]
[361058080,1747223445602,-948.85,0.00011259,2]
[361058081,1747223445611,-1181.46,0.00011259,2]
[361058082,1747223445621,-1026.93,0.00011259,2]
[361058083,1747223445631,-400.0,0.00011259,2]
[361058084,1747223445640,-1788.53,0.00011259,2]
[361058085,1747223445650,-400.0,0.00011259,2]
[361058086,1747223445660,-2145.66,0.00011259,2]
[361058087,1747223445670,-506.58,0.00011259,2]
[361058088,1747223445679,-701.84,0.00011259,2]
[361058089,1747223445689,-400.0,0.00011259,2]
[361058090,1747223445698,-3449.37,0.00011259,2]
[361058091,1747223445708,-705.87,0.00011259,2]
[361058092,1747223445718,-400.0,0.00011259,2]
[361058093,1747223445727,-400.0,0.00011259,2]
[361058094,1747223445737,-5343.59,0.00011259,2]
[361058095,1747223445747,-2407.43,0.00011259,2]
[361058096,1747223445758,-773.25,0.00011259,2]
[361058097,1747223445767,-571.25,0.00011259,2]
[361058098,1747223445778,-400.0,0.00011259,2]
[361058099,1747223445788,-400.0,0.00011259,2]
[361058100,1747223445798,-1779.16,0.00011259,2]
[361058101,1747223445807,-2559.14,0.00011259,2]
[361058102,1747223445817,-400.0,0.00011259,2]
[361058103,1747223445827,-8443.74,0.00011259,2]
[361058104,1747223445839,-779.67,0.00011259,2]
[361058105,1747223445848,-400.0,0.00011259,2]
[361058106,1747223445858,-400.0,0.00011259,2]
[361058107,1747223445867,-406.21,0.00011259,2]
[361058108,1747223445878,-400.0,0.00011259,2]
[361058109,1747223445888,-703.69,0.00011259,2]
[361058110,1747223445898,-400.0,0.00011259,2]
[361058111,1747223445910,-400.0,0.00011259,2]
[361058112,1747223445920,-499.9,0.00011259,2]
[361058113,1747223445930,-1000.0,0.00011259,2]
[361058114,1747223445940,-2175.47,0.00011259,2]
[361058115,1747223445950,-21054.44,0.00011259,2]
[361058116,1747223445960,-400.0,0.00011259,2]
[361058117,1747223445970,-593.86,0.00011259,2]
[361058118,1747223445979,-823.7,0.00011259,2]
[361058119,1747223445988,-400.0,0.00011259,2]
[361058120,1747223445998,-400.0,0.00011259,2]
[361058121,1747223446007,-2152.56,0.00011259,2]
[361058122,1747223446018,-400.0,0.00011259,2]
[361058123,1747223446027,-400.0,0.00011259,2]
[361058124,1747223446037,-400.0,0.00011259,2]
[361058125,1747223446046,-477.51,0.00011259,2]
[361058126,1747223446056,-884.74,0.00011259,2]
[361058128,1747223446066,-1234.65,0.00011259,2]
[361058129,1747223446075,-458.16,0.00011259,2]
[361058130,1747223446085,-1000.0,0.00011259,2]
[361058131,1747223446094,-572.9,0.00011259,2]
[361058132,1747223446104,-449.87,0.00011259,2]
[361058133,1747223446114,-533.7,0.00011259,2]
[361058134,1747223446123,-400.0,0.00011259,2]
[361058135,1747223446133,-1469.94,0.00011259,2]
[361058136,1747223446142,-536.78,0.00011259,2]
[361058137,1747223446151,-764.98,0.00011259,2]
[361058138,1747223446161,-640.35,0.00011259,2]
[361058139,1747223446170,-200.0,0.0001126,2]
[361058140,1747223446180,-400.0,0.0001126,2]
[361058141,1747223446189,-445.64,0.0001126,2]
[361058142,1747223446200,-528.52,0.0001126,2]
[361058143,1747223446211,-400.0,0.0001126,2]
[361058144,1747223446220,-400.0,0.0001126,2]
[361058145,1747223446230,-704.43,0.0001126,2]
[361058146,1747223446241,-400.0,0.0001126,2]
[361058147,1747223446250,-400.0,0.0001126,2]
[361058148,1747223446260,-400.0,0.0001126,2]
[361058149,1747223446269,-400.0,0.0001126,2]
[361058150,1747223446279,-759.59,0.0001126,2]
[361058151,1747223446288,-400.0,0.0001126,2]
[361058152,1747223446297,-400.0,0.0001126,2]
[361058153,1747223446307,-400.0,0.0001126,2]
[361058154,1747223446316,-400.0,0.0001126,2]
[361058155,1747223446325,-400.0,0.0001126,2]
[361058156,1747223446335,-400.0,0.0001126,2]
[361058157,1747223446344,-400.0,0.0001126,2]
[361058158,1747223446353,-969.95,0.0001126,2]
[361058159,1747223446363,-400.0,0.0001126,2]
[361058160,1747223446372,-353.49907144,0.0001126,2]
[361058161,1747223446381,-400.0,0.0001126,2]
[361058162,1747223446390,-400.0,0.0001126,2]
[361058163,1747223446399,-400.0,0.0001126,2]
[361058164,1747223446408,-400.0,0.0001126,2]
[361058165,1747223446418,-400.0,0.0001126,2]
[361058166,1747223446427,-461.22,0.0001126,2]
[361058167,1747223446437,-400.0,0.0001126,2]
[361058168,1747223446446,-400.0,0.0001126,2]
[361058169,1747223446456,-400.0,0.0001126,2]
[361058170,1747223446465,-400.0,0.0001126,2]
[361058171,1747223446474,-502.58,0.0001126,2]
[361058172,1747223446483,-400.0,0.0001126,2]
[361058173,1747223446493,-400.0,0.0001126,2]
[361058174,1747223446503,-400.0,0.0001126,2]
[361058175,1747223446513,-485.09,0.0001126,2]
[361058176,1747223446522,-400.0,0.0001126,2]
[361058177,1747223446532,-400.0,0.0001126,2]
[361058178,1747223446541,-400.0,0.0001126,2]
[361058179,1747223446551,-400.0,0.0001126,2]
[361058180,1747223446560,-400.0,0.0001126,2]
[361058181,1747223446569,-400.0,0.0001126,2]
[361058182,1747223446579,-400.0,0.0001126,2]
[361058183,1747223446588,-400.0,0.0001126,2]
[361058184,1747223446597,-400.0,0.0001126,2]
[361058185,1747223446606,-459.91,0.0001126,2]
[361058186,1747223446616,-400.0,0.0001126,2]
[361058187,1747223446626,-400.0,0.0001126,2]
[361058188,1747223446635,-400.0,0.0001126,2]
[361058189,1747223446645,-422.85,0.0001126,2]
[361058190,1747223446656,-400.0,0.0001126,2]
[361058191,1747223446665,-400.0,0.0001126,2]
[361058192,1747223446674,-400.0,0.0001126,2]
[361058193,1747223446683,-400.0,0.0001126,2]
[361058194,1747223446693,-400.0,0.0001126,2]
[361058196,1747223446702,-580.21,0.0001126,2]
[361058197,1747223446712,-400.0,0.0001126,2]
[361058198,1747223446721,-615.51,0.0001126,2]
[361058199,1747223446731,-400.0,0.0001126,2]
[361058200,1747223446740,-400.0,0.0001126,2]
[361058201,1747223446750,-400.0,0.0001126,2]
[361058202,1747223446760,-400.0,0.0001126,2]
[361058203,1747223446770,-400.0,0.0001126,2]
[361058204,1747223446779,-400.0,0.0001126,2]
[361058205,1747223446789,-400.0,0.0001126,2]
[361058206,1747223446798,-505.91,0.0001126,2]
[361058207,1747223446808,-400.0,0.0001126,2]
[361058208,1747223446817,-400.0,0.0001126,2]
[361058209,1747223446828,-1154.41,0.0001126,2]
[361058210,1747223446845,-400.0,0.0001126,2]
[361058211,1747223446854,-678.82,0.0001126,2]
[361058212,1747223446863,-400.0,0.0001126,2]
[361058213,1747223446874,-400.0,0.0001126,2]
[361058214,1747223446884,-1309.12,0.0001126,2]
[361058215,1747223446894,-400.0,0.0001126,2]
[361058216,1747223446904,-400.0,0.0001126,2]
[361058217,1747223446913,-1350.8,0.0001126,2]
[361058218,1747223446923,-656.29,0.0001126,2]
[361058219,1747223446932,-400.0,0.0001126,2]
[361058220,1747223446942,-524.97964838,0.0001126,2]
[361058221,1747223446951,-400.0,0.0001126,2]
[361058222,1747223446961,-400.0,0.0001126,2]
[361058223,1747223446970,-400.0,0.0001126,2]
[361058224,1747223446979,-400.0,0.0001126,2]
[361058225,1747223446988,-1211.42,0.0001126,2]
[361058226,1747223446998,-269.77,0.0001126,2]
[361058227,1747223447009,-722.74,0.0001126,2]
[361058228,1747223447018,-400.0,0.0001126,2]
[361058229,1747223447027,-329.5340329,0.0001126,2]
[361058230,1747223447037,-944.56,0.0001126,2]
[361058231,1747223447046,-400.0,0.0001126,2]
[361058232,1747223447056,-400.0,0.0001126,2]
[361058233,1747223447066,-437.57,0.0001126,2]
[361058234,1747223447075,-400.0,0.0001126,2]
[361058235,1747223447085,-400.0,0.0001126,2]
[361058236,1747223447095,-400.0,0.0001126,2]
[361058237,1747223447107,-462.64,0.0001126,2]
[361058238,1747223447117,-400.0,0.0001126,2]
[361058239,1747223447127,-400.0,0.0001126,2]
[361058240,1747223447138,-409.16,0.0001126,2]
[361058241,1747223447147,-765.37,0.0001126,2]
[361058242,1747223447157,-400.0,0.0001126,2]
[361058243,1747223447167,-505.89,0.0001126,2]
[361058244,1747223447177,-400.0,0.0001126,2]
[361058245,1747223447187,-2153.64,0.0001126,2]
[361058246,1747223447196,-400.0,0.0001126,2]
[361058247,1747223447206,-400.0,0.0001126,2]
[361058248,1747223447216,-400.0,0.0001126,2]
[361058249,1747223447225,-2091.49,0.0001126,2]
[361058250,1747223447235,-800.93,0.0001126,2]
[361058251,1747223447245,-400.0,0.0001126,2]
[361058252,1747223447255,-400.0,0.0001126,2]
[361058253,1747223447265,-989.55,0.0001126,2]
[361058254,1747223447275,-507.59,0.0001126,2]
[361058255,1747223447285,-400.0,0.0001126,2]
[361058256,1747223447295,-400.0,0.0001126,2]
[361058257,1747223447304,-400.0,0.0001126,2]
[361058258,1747223447314,-358.0,0.0001126,2]
[361058259,1747223447325,-432.21659453,0.0001126,2]
[361058260,1747223447336,-922.11,0.0001126,2]
[361058261,1747223447346,-400.0,0.0001126,2]
[361058262,1747223447355,-526.57980561,0.0001126,2]
[361058263,1747223447364,-400.0,0.0001126,2]
[361058264,1747223447374,-400.0,0.0001126,2]
[361058265,1747223447385,-472.74,0.0001126,2]
[361058266,1747223447395,-633.44,0.0001126,2]
[361058267,1747223447404,-400.0,0.0001126,2]
[361058268,1747223447414,-465.18,0.0001126,2]
[361058269,1747223447424,-586.48,0.0001126,2]
[361058270,1747223447433,-400.0,0.0001126,2]
[361058271,1747223447443,-400.0,0.0001126,2]
[361058272,1747223447453,-400.0,0.0001126,2]
[361058273,1747223447462,-400.0,0.0001126,2]
[361058274,1747223447471,-400.0,0.0001126,2]